bitfinex-derivatives/quotes_SOLF0:USTF0_20251228
["timestamp","ask_amount","ask_price","bid_price","bid_amount"]
[1766917531348,7.2362,124.48,124.41,0.05637133]
[1766917532454,0.05777126,124.46,124.41,0.05637133]
[1766917533438,0.05777126,124.46,124.41,3.48637133]
[1766917534855,0.05777126,124.46,124.41,10.72597133]
[1766917535147,0.05777126,124.46,124.42,3.43]
[1766917535351,7.2351,124.5,124.42,3.43]
[1766917536351,0.05327568,124.47,124.45,0.06076285]
[1766917556276,0.05327568,124.47,124.45,3.38076285]
[1766917556968,0.05327568,124.47,124.45,0.06076285]
[1766917608121,0.00327568,124.47,124.45,3.51076285]
[1766917609725,7.2353,124.49,124.45,3.51076285]
[1766917610724,0.05806341,124.48,124.45,3.51076285]
[1766917617526,94.96,124.52,124.45,3.51076285]
[1766917618523,0.05450245,124.5,124.45,3.51076285]
[1766917622130,0.05450245,124.5,124.45,10.74826285]
[1766917622330,0.05450245,124.5,124.46,3.41]
[1766917628639,0.05450245,124.5,124.46,10.647]
[1766917629439,0.05450245,124.5,124.47,3.41]
[1766917649251,0.00450245,124.5,124.47,3.41]
[1766917678973,1.71885741,124.53,124.47,3.41]
[1766917679970,0.06072954,124.51,124.5,3.2]
[1766917680275,10.91776643,181.09,124.5,3.2]
[1766917680276,207.4055,124.59,124.5,3.2]
[1766917681080,0.05394859,124.56,124.5,3.2]
[1766917681681,7.28524859,124.56,124.5,3.2]
[1766917681885,0.05394859,124.56,124.5,3.2]
[1766917682180,0.05394859,124.56,124.52,3.25525376]
[1766917682381,0.05979401,124.55,124.52,3.25525376]
[1766917700402,0.05979401,124.55,124.52,0.05525376]
[1766917701705,7.29159401,124.55,124.52,0.05525376]
[1766917703806,112.55849401,124.55,124.45,3.35]
[1766917703996,112.4987,124.55,124.45,3.35]
[1766917704804,0.0571955,124.51,124.49,0.05818485]
[1766917708401,7.2347,124.5,124.44,94.9]
[1766917708596,10.3147,124.5,124.4,207.5269]
[1766917708796,10.3147,124.5,124.4,217.5014679]
[1766917709396,10.3147,124.5,124.44,0.05864422]
[1766917710411,10.3147,124.5,124.44,3.40864422]
[1766917710716,0.05112358,124.48,124.44,3.40864422]
[1766917715512,0.00112358,124.48,124.44,3.40864422]
[1766917716709,0.00112358,124.48,124.45,3.35]
[1766917728621,10.5232,124.53,124.46,3.34]
[1766917729030,3.29,124.52,124.46,3.34]
[1766917729627,0.05829162,124.5,124.48,0.05808699]
[1766917746248,7.2332,124.53,124.48,3.30808699]
[1766917746448,10.5532,124.53,124.48,3.30808699]
[1766917747147,3.32,124.52,124.48,3.30808699]
[1766917747448,3.3806395,124.52,124.48,3.30808699]
[1766917748050,0.0606395,124.52,124.48,3.30808699]
[1766917770459,7.2941395,124.52,124.48,3.30808699]
[1766917775367,7.2341,124.51,124.48,3.30808699]
[1766917786976,7.2341,124.51,124.48,0.05808699]
[1766917790771,7.2347,124.5,124.48,0.05808699]
[1766917791974,3.37,124.51,124.48,0.05808699]
[1766917793673,10.6041,124.51,124.48,0.05808699]
[1766917796473,3.37,124.51,124.48,0.05808699]
[1766917797980,0.0606395,124.52,124.48,0.05808699]
[1766917798277,3.4306395,124.52,124.48,0.05808699]
[1766917803779,3.4306395,124.52,124.48,3.56808699]
[1766917804084,0.0606395,124.52,124.48,3.56808699]
[1766917813989,0.0006395,124.52,124.48,3.56808699]
[1766917814190,0.0006395,124.52,124.49,3.51]
[1766917817594,3.3506395,124.52,124.48,0.05808699]
[1766917818897,3.3506395,124.52,124.48,3.49808699]
[1766917827694,10.5841395,124.52,124.48,0.05808699]
[1766917827895,3.35,124.51,124.48,0.05808699]
[1766917828091,3.35,124.51,124.44,13.4145679]
[1766917828292,10.5847,124.5,124.45,3.44]
[1766917829097,0.05727512,124.49,124.46,0.05787515]
[1766917834111,3.40727512,124.49,124.46,0.05787515]
[1766917848816,3.36,124.48,124.43,98.53]
[1766917849816,3.36,124.48,124.44,0.05640164]
[1766917853720,3.47,124.47,124.42,3.51]
[1766917854815,0.0538946,124.46,124.43,0.05360498]
[1766917858524,3.5138946,124.46,124.43,0.05360498]
[1766917865429,0.0538946,124.46,124.43,0.05360498]
[1766917865630,0.0538946,124.46,124.43,3.56360498]
[1766917866330,3.44,124.48,124.43,3.56360498]
[1766917867423,0.0526917,124.47,124.43,3.56360498]
[1766917879938,0.0026917,124.47,124.43,3.56360498]
[1766917888342,3.4326917,124.47,124.43,3.56360498]
[1766917889535,10.6691917,124.47,124.43,3.56360498]
[1766917902753,0.0026917,124.47,124.43,3.56360498]
[1766917904550,0.0026917,124.47,124.43,10.80210498]
[1766917904748,0.0026917,124.47,124.44,3.52]
[1766917911556,107.5969071,124.52,124.45,3.45]
[1766917912258,3.38,124.51,124.45,3.45]
[1766917912655,0.05887489,124.49,124.47,0.05147168]
[1766917912845,3.38,124.51,124.47,0.05147168]
[1766917913049,2.0229071,124.52,124.47,3.50147168]
[1766917913846,0.0577447,124.51,124.47,3.50147168]
[1766917914754,2.0229071,124.52,124.48,3.45]
[1766917915561,2.0229071,124.52,124.48,10.6858]
[1766917915762,0.05898942,124.51,124.48,10.6858]
[1766917917769,0.05898942,124.51,124.48,3.45]
[1766917947090,2.0229071,124.52,124.48,3.45]
[1766917948091,0.05483738,124.51,124.48,3.45]
[1766917958097,0.05483738,124.51,124.47,98.43147168]
[1766917958595,0.05483738,124.51,124.47,3.51147168]
[1766917958800,3.34483738,124.51,124.47,0.05147168]
[1766917959383,3.29,124.5,124.45,3.46]
[1766917959588,10.5249,124.5,124.45,3.46]
[1766917959888,3.29,124.5,124.45,3.46]
[1766917960394,3.29,124.5,124.46,0.05595793]
[1766917963895,10.525,124.5,124.46,0.05595793]
[1766917967102,3.27,124.49,124.46,0.05595793]
[1766917969101,3.27,124.48,124.43,3.23]
[1766917970101,0.05127735,124.47,124.44,0.056641]
[1766917971107,0.00127735,124.47,124.44,3.286641]
[1766917971306,0.00127735,124.47,124.44,10.524541]
[1766917971495,0.00127735,124.47,124.45,3.23]
[1766917981109,0.00127735,124.47,124.45,98.17]
[1766917991413,0.00127735,124.47,124.46,3.5]
[1766918001421,12.6564071,124.52,124.46,3.5]
[1766918002422,0.0610116,124.5,124.48,0.0573198]
[1766918002821,3.4,124.52,124.48,98.4573198]
[1766918003820,0.05522173,124.51,124.48,98.4573198]
[1766918028744,0.05522173,124.51,124.48,98.4373198]
[1766918040365,9.22450699,124.53,124.49,3.33]
[1766918041068,5.96450699,124.53,124.49,3.33]
[1766918041258,3.43,124.55,124.49,3.33]
[1766918041459,0.02370041,124.54,124.51,0.05939907]
[1766918042168,5.9884962,124.54,124.51,0.05939907]
[1766918043063,9.4184962,124.54,124.51,0.05939907]
[1766918073899,3.45370041,124.54,124.51,0.05939907]
[1766918074395,9.41240131,124.54,124.51,0.05939907]
[1766918075795,5.98240131,124.54,124.51,0.05939907]
[1766918077000,0.02370041,124.54,124.51,0.05939907]
[1766918086018,0.02370041,124.54,124.51,3.35939907]
[1766918090326,0.02370041,124.54,124.51,0.05939907]
[1766918092630,7.25610041,124.54,124.51,0.05939907]
[1766918099632,0.02370041,124.54,124.51,0.05939907]
[1766918102531,0.02370041,124.54,124.51,3.48939907]
[1766918105228,0.02370041,124.54,124.52,10.6634]
[1766918106136,0.02370041,124.54,124.51,3.48939907]
[1766918107233,0.02370041,124.54,124.52,3.43]
[1766918109737,10.6901,124.58,124.52,3.43]
[1766918110538,10.6901,124.58,124.54,0.05298324]
[1766918113433,23.48654484,124.64,124.54,3.48298324]
[1766918113434,3.46,124.61,124.54,3.48298324]
[1766918114542,3.46,124.61,124.55,3.43]
[1766918114742,3.46,124.61,124.57,0.05448862]
[1766918135460,3.46,124.61,124.57,3.32448862]
[1766918135661,10.5472,124.63,124.57,3.32448862]
[1766918135959,10.5472,124.63,124.59,0.05776226]
[1766918137457,3.32,124.62,124.59,0.05776226]
[1766918155361,3.39,124.61,124.55,94.86]
[1766918155664,3.39,124.61,124.55,98.04]
[1766918155866,3.39,124.61,124.55,3.18]
[1766918156360,0.05776226,124.59,124.57,0.05141642]
[1766918157762,3.44776226,124.59,124.57,0.00141642]
[1766918189494,13.1234535,124.64,124.57,3.41141642]
[1766918189695,7.2268,124.64,124.57,3.41]
[1766918190399,0.05,124.62,124.59,0.05998855]
[1766918192097,0.05,124.62,124.53,3.41]
[1766918192305,5.89659565,124.62,124.53,98.27]
[1766918193002,0.05864653,124.59,124.56,0.05810388]
[1766918211702,5.90669999,124.62,124.56,0.05810388]
[1766918212202,13.13459999,124.62,124.56,0.05810388]
[1766918212504,7.2279,124.62,124.56,0.05810388]
[1766918212703,0.05134202,124.6,124.56,0.05810388]
[1766918212900,0.00134202,124.6,124.57,3.27]
[1766918214408,0.00134202,124.6,124.59,3.27]
[1766918215814,0.00134202,124.6,124.58,94.86]
[1766918216909,0.00134202,124.6,124.57,3.27]
[1766918217110,0.00134202,124.6,124.57,98.13]
[1766918217714,0.00134202,124.6,124.56,94.91810388]
[1766918219016,0.00134202,124.6,124.56,98.18810388]
[1766918222518,0.00134202,124.6,124.57,3.27]
[1766918225917,0.00134202,124.6,124.57,94.86]
[1766918226920,0.00134202,124.6,124.57,98.13]
[1766918230021,0.00134202,124.6,124.57,94.86]
[1766918233026,0.00134202,124.6,124.56,0.05810388]
[1766918234714,7.23024202,124.6,124.56,0.05810388]
[1766918234925,0.00134202,124.6,124.52,3.22]
[1766918235119,5.90069157,124.6,124.52,3.22]
[1766918235921,0.05844332,124.57,124.55,0.05177522]
[1766918236321,0.05844332,124.57,124.52,3.22]
[1766918237332,0.05844332,124.57,124.53,0.05283651]
[1766918241540,7.28934332,124.57,124.53,0.05283651]
[1766918243443,7.2313,124.56,124.5,98.08]
[1766918243833,7.2313,124.56,124.5,3.22]
[1766918244432,0.05829176,124.54,124.52,0.0587144]
[1766918256755,0.05829176,124.54,124.5,3.22]
[1766918257756,7.29069176,124.54,124.51,0.053616]
[1766918258453,7.29069176,124.54,124.48,98.1]
[1766918258653,7.29069176,124.54,124.49,3.22]
[1766918259255,7.29069176,124.54,124.5,0.06092339]
[1766918261150,7.233,124.53,124.5,0.06092339]
[1766918274965,0.05829176,124.54,124.5,0.06092339]
[1766918275161,0.05829176,124.54,124.5,3.29092339]
[1766918279367,112.4639,124.59,124.5,3.29092339]
[1766918279562,94.9,124.58,124.5,3.23]
[1766918280374,0.05398745,124.55,124.53,0.05695395]
[1766918282074,94.9,124.54,124.48,3.36]
[1766918283181,0.06002567,124.52,124.5,0.05744136]
[1766918284581,112.4721,124.58,124.5,3.41744136]
[1766918284779,94.9,124.58,124.5,3.36]
[1766918285567,7.2311,124.57,124.53,0.05131931]
[1766918285773,0.06177221,124.55,124.53,0.05131931]
[1766918288880,0.06177221,124.55,124.53,0.00131931]
[1766918290377,94.9,124.54,124.53,0.00131931]
[1766918290883,102.41569184,124.54,124.53,0.00131931]
[1766918300090,100.81569184,124.54,124.53,0.00131931]
[1766918300985,102.41569184,124.54,124.53,0.00131931]
[1766918302486,100.81569184,124.54,124.53,0.00131931]
[1766918303986,102.41569184,124.54,124.53,0.00131931]
[1766918304294,109.64799184,124.54,124.53,0.00131931]
[1766918304791,108.04799184,124.54,124.53,0.00131931]
[1766918304984,108.04799184,124.54,124.39,127.59523099]
[1766918304985,7.2361,124.48,124.44,3.5]
[1766918305887,0.06140969,124.47,124.45,0.06113196]
[1766918322801,7.29780969,124.47,124.44,3.5]
[1766918323904,7.29780969,124.47,124.44,3.55300403]
[1766918330607,7.29780969,124.47,124.44,0.05300403]
[1766918330809,7.29780969,124.47,124.42,3.51]
[1766918331709,7.29780969,124.47,124.43,0.05656264]
[1766918334009,7.237,124.46,124.43,0.05656264]
[1766918335809,102.197,124.46,124.43,0.05656264]
[1766918344721,94.96,124.46,124.43,0.05656264]
[1766918345220,0.06140969,124.47,124.43,3.32656264]
[1766918370650,0.00140969,124.47,124.43,3.32656264]
[1766918372545,7.2351,124.5,124.44,3.3]
[1766918373437,0.05394487,124.48,124.46,0.05441288]
[1766918373637,0.00394487,124.48,124.46,3.35441288]
[1766918384853,0.00394487,124.48,124.46,0.05441288]
[1766918385152,0.00394487,124.48,124.44,3.41]
[1766918385652,0.00394487,124.48,124.41,3.41]
[1766918385955,112.542,124.5,124.41,3.41]
[1766918386151,0.05896958,124.47,124.44,0.05758465]
[1766918386755,7.29546958,124.47,124.44,0.05758465]
[1766918397457,0.05896958,124.47,124.44,0.05758465]
[1766918429589,0.05896958,124.47,124.42,3.41]
[1766918430681,0.05896958,124.47,124.43,3.58966251]
[1766918430881,0.05896958,124.47,124.43,0.05966251]
[1766918432185,7.2371,124.46,124.43,0.05966251]
[1766918448102,7.2376,124.45,124.4,3.51]
[1766918449106,0.05193793,124.44,124.41,0.05251736]
[1766918457315,0.05193793,124.44,124.41,3.53251736]
[1766918460921,0.00193793,124.44,124.41,3.53251736]
[1766918462622,7.2361,124.48,124.41,3.53251736]
[1766918462822,7.2361,124.48,124.41,3.48]
[1766918463517,0.05185014,124.46,124.43,0.05362921]
[1766918467524,0.05185014,124.46,124.43,3.53362921]
[1766918470329,8.89501741,124.5,124.43,3.53362921]
[1766918470828,8.85501741,124.5,124.43,3.53362921]
[1766918471329,0.05979499,124.48,124.43,3.53362921]
[1766918471826,0.05979499,124.48,124.44,3.48]
[1766918473329,7.234,124.52,124.45,3.48]
[1766918474429,0.05279703,124.5,124.47,3.53668409]
[1766918477524,7.234,124.52,124.47,3.53668409]
[1766918478623,0.0563303,124.51,124.47,3.53668409]
[1766918479121,104.0128,124.54,124.47,3.53668409]
[1766918480133,0.0556088,124.52,124.47,3.53668409]
[1766918482334,1.8756088,124.52,124.47,0.05668409]
[1766918482527,1.82,124.51,124.45,3.47]
[1766918482942,7.2353,124.49,124.45,3.47]
[1766918483427,0.05508232,124.48,124.46,0.05839864]
[1766918491840,1.87508232,124.48,124.43,10.7086]
[1766918492841,1.87508232,124.48,124.44,0.06059373]
[1766918495445,0.05508232,124.48,124.44,3.53059373]
[1766918515267,7.29098232,124.48,124.44,3.53059373]
[1766918519767,0.05508232,124.48,124.44,3.53059373]
[1766918520969,9.0046,124.51,124.44,3.53059373]
[1766918521867,0.00396408,124.49,124.44,3.53059373]
[1766918523662,0.00396408,124.49,124.45,3.31]
[1766918544683,7.23926408,124.49,124.45,3.31]
[1766918552392,0.00396408,124.49,124.45,3.31]
[1766918570523,9.11936408,124.49,124.44,0.06059373]
[1766918572326,7.2358,124.48,124.44,0.06059373]
[1766918573326,1.88396408,124.49,124.44,0.06059373]
[1766918575727,1.88396408,124.49,124.44,3.37059373]
[1766918580630,0.00396408,124.49,124.45,3.31]
[1766918581925,0.00396408,124.49,124.45,10.5475]
[1766918585431,0.00396408,124.49,124.45,3.31]
[1766918639591,337.3806,124.59,124.45,3.31]
[1766918639592,1.87,124.52,124.45,3.31]
[1766918640690,0.05787267,124.5,124.47,0.06113268]
[1766918642601,1.87,124.52,124.47,3.34113268]
[1766918643600,0.05109783,124.51,124.47,3.34113268]
[1766918655718,1.87,124.49,124.43,3.38]
[1766918656717,0.06032464,124.47,124.45,0.05665041]
[1766918671330,1.87,124.49,124.45,0.05665041]
[1766918672329,0.05882257,124.48,124.45,0.05665041]
[1766918672531,1.92882257,124.48,124.45,0.05665041]
[1766918673733,9.16462257,124.48,124.45,0.05665041]
[1766918675333,1.92882257,124.48,124.45,0.05665041]
[1766918693046,0.05882257,124.48,124.45,0.05665041]
[1766918694148,0.05882257,124.48,124.45,3.34665041]
[1766918698846,1.87,124.5,124.45,3.34665041]
[1766918699854,0.05662909,124.49,124.45,3.34665041]
[1766918725267,0.05662909,124.49,124.45,10.58415041]
[1766918726771,0.05662909,124.49,124.46,3.48]
[1766918728565,9.1625,124.54,124.48,3.48]
[1766918728768,1.93,124.54,124.48,3.48]
[1766918729474,1.93,124.54,124.5,0.05813833]
[1766918730272,9.1624,124.54,124.5,0.05813833]
[1766918738968,1.93,124.53,124.5,0.05813833]
[1766918739767,9.1629,124.53,124.5,0.05813833]
[1766918741582,1.93,124.52,124.5,0.05813833]
[1766918748185,1.98420781,124.52,124.46,10.7169]
[1766918748374,1.98420781,124.52,124.46,3.48]
[1766918749284,1.81,124.5,124.48,0.00040352]
[1766918750287,1.86367345,124.5,124.48,0.00040352]
[1766918750484,1.86367345,124.5,124.44,3.48]
[1766918750782,9.09837345,124.5,124.44,3.48]
[1766918751386,9.09837345,124.5,124.46,0.05588957]
[1766918760689,1.86367345,124.5,124.46,0.05588957]
[1766918761592,0.05367345,124.5,124.46,3.41588957]
[1766918793925,7.28857345,124.5,124.46,3.41588957]
[1766918799935,0.05367345,124.5,124.46,3.41588957]
[1766918800322,0.00367345,124.5,124.46,3.41588957]
[1766918835569,1.86367345,124.5,124.46,0.05588957]
[1766918836667,9.09837345,124.5,124.46,0.05588957]
[1766918843473,9.09837345,124.5,124.44,3.52]
[1766918843474,1.86,124.49,124.44,3.52]
[1766918844469,1.86,124.49,124.45,0.06081632]
[1766918850274,9.0953,124.49,124.45,0.06081632]
[1766918864292,7.2353,124.49,124.45,3.58081632]
[1766918865596,1.86367345,124.5,124.45,3.58081632]
[1766918865993,7.84955902,124.5,124.45,3.58081632]
[1766918866195,1.86367345,124.5,124.45,3.58081632]
[1766918867996,0.00367345,124.5,124.45,3.58081632]
[1766918873596,7.23867345,124.5,124.45,3.58081632]
[1766918873799,9.09867345,124.5,124.45,3.58081632]
[1766918886610,1.86,124.49,124.45,0.06081632]
[1766918893926,9.0953,124.49,124.45,0.06081632]
[1766918910346,1.86,124.48,124.45,0.06081632]
[1766918913450,1.8,124.47,124.45,0.00081632]
[1766918914451,1.856322,124.47,124.45,0.00081632]
[1766918920762,1.8,124.46,124.4,3.35]
[1766918921764,0.05596558,124.44,124.42,0.05324214]
[1766918926364,1.8,124.46,124.42,0.05324214]
[1766918927464,0.06000895,124.45,124.42,0.05324214]
[1766918937078,1.54872482,124.46,124.42,3.47324214]
[1766918937379,7.2357,124.49,124.42,3.47324214]
[1766918938180,0.05494987,124.47,124.42,3.47324214]
[1766918968101,7.29134987,124.47,124.42,3.47324214]
[1766918968396,0.05494987,124.47,124.42,3.47324214]
[1766918997330,0.05494987,124.47,124.42,10.71254214]
[1766918997530,0.05494987,124.47,124.43,3.52]
[1766919001534,0.05494987,124.47,124.43,10.7587]
[1766919001736,0.00494987,124.47,124.44,3.52]
[1766919052471,0.00494987,124.47,124.44,10.758]
[1766919053673,0.00494987,124.47,124.45,3.52]
[1766919053974,0.00494987,124.47,124.45,3.5789512]
[1766919079907,0.00494987,124.47,124.45,10.8164512]
[1766919080107,0.00494987,124.47,124.46,3.38]
[1766919081003,0.00494987,124.47,124.46,10.617]
[1766919082098,5.98897473,124.54,124.48,3.38]
[1766919082407,1.6,124.56,124.5,3.38]
[1766919082604,1.6,124.56,124.5,98.32]
[1766919083006,1.6,124.56,124.52,0.06044645]
[1766919083611,8.8317,124.56,124.52,0.06044645]
[1766919083911,1.6,124.56,124.52,0.06044645]
[1766919084710,7.2318,124.55,124.52,0.06044645]
[1766919085412,8.8318,124.55,124.52,0.06044645]
[1766919086006,1.6,124.55,124.52,0.06044645]
[1766919086207,8.8311,124.57,124.52,0.06044645]
[1766919087513,1.6,124.56,124.52,0.06044645]
[1766919087912,7.2311,124.57,124.52,3.44044645]
[1766919088218,1.6,124.58,124.52,3.44044645]
[1766919088411,1.6,124.59,124.52,3.44044645]
[1766919088613,1.6,124.59,124.53,3.38]
[1766919088812,1.6,124.59,124.55,0.05467748]
[1766919092018,7.229,124.6,124.55,3.43467748]
[1766919095319,8.829,124.6,124.55,3.43467748]
[1766919097309,1.55,124.58,124.51,3.38]
[1766919098420,0.0582441,124.56,124.53,0.05444845]
[1766919107026,1.5982441,124.56,124.49,3.38]
[1766919107233,1.54,124.56,124.49,3.38]
[1766919108026,0.05839668,124.54,124.51,0.05339479]
[1766919111725,7.29069668,124.54,124.51,0.05339479]
[1766919121138,0.05839668,124.54,124.51,0.05339479]
[1766919121340,0.05839668,124.54,124.51,3.28339479]
[1766919122426,7.2317,124.56,124.51,3.28339479]
[1766919122632,1.6,124.59,124.51,3.28339479]
[1766919122839,1.6,124.59,124.51,3.23]
[1766919123331,1.6,124.59,124.53,3.23]
[1766919123738,1.6,124.59,124.55,0.05910652]
[1766919124132,1.6,124.59,124.55,3.28910652]
[1766919124335,1.6,124.61,124.55,3.28910652]
[1766919124530,1.6,124.61,124.55,3.23]
[1766919124731,1.6,124.61,124.57,0.0542347]
[1766919125025,8.8283,124.61,124.57,0.0542347]
[1766919126034,7.2283,124.61,124.57,0.0542347]
[1766919126238,8.8289,124.6,124.57,0.0042347]
[1766919126538,1.55,124.59,124.57,0.0042347]
[1766919127340,8.83871248,124.59,124.57,0.0042347]
[1766919130043,8.83871248,124.59,124.54,3.23]
[1766919131041,8.83871248,124.59,124.55,0.05811169]
[1766919136646,8.83871248,124.59,124.55,3.46811169]
[1766919136647,1.60921248,124.59,124.55,3.46811169]
[1766919160872,0.05921248,124.59,124.55,3.46811169]
[1766919168581,7.28871248,124.59,124.55,3.46811169]
[1766919183689,7.23,124.58,124.55,3.46811169]
[1766919184393,8.78,124.58,124.55,0.05811169]
[1766919184593,8.78,124.58,124.53,3.29]
[1766919185479,8.78,124.58,124.54,0.06129906]
[1766919192700,1.55,124.57,124.54,0.06129906]
[1766919193598,7.2312,124.56,124.51,3.29]
[1766919194601,0.05090649,124.55,124.52,0.0539515]
[1766919248348,0.00090649,124.55,124.52,3.3439515]
[1766919248546,0.00090649,124.55,124.53,3.29]
[1766919256351,0.00090649,124.55,124.53,10.5229]
[1766919256648,0.00090649,124.55,124.54,3.42]
[1766919259460,0.00090649,124.55,124.54,98.3]
[1766919275674,1.6,124.64,124.55,3.42]
[1766919275977,1.6,124.63,124.56,3.42]
[1766919276176,1.6,124.62,124.56,98.28]
[1766919276774,0.06002482,124.6,124.58,0.05327005]
[1766919283787,0.06002482,124.6,124.55,3.42]
[1766919283989,1.6,124.6,124.55,98.28]
[1766919284881,0.06001655,124.59,124.56,0.05497229]
[1766919291497,1.6,124.58,124.53,3.34]
[1766919292194,8.8301,124.58,124.53,3.34]
[1766919292396,1.6,124.58,124.53,3.34]
[1766919292598,1.6,124.58,124.54,0.06104009]
[1766919295595,0.06001655,124.59,124.54,3.44104009]
[1766919296601,0.06001655,124.59,124.55,3.38]
[1766919305912,8.89961655,124.59,124.54,0.06104009]
[1766919306104,1.61,124.58,124.54,0.06104009]
[1766919306303,1.61,124.58,124.51,3.38]
[1766919306508,8.8418,124.55,124.49,3.38]
[1766919307304,0.05794139,124.53,124.51,0.05888592]
[1766919307799,8.8911,124.57,124.51,3.43888592]
[1766919308611,0.05988868,124.55,124.51,3.43888592]
[1766919314416,1.71988868,124.55,124.51,0.05888592]
[1766919317316,8.95168868,124.55,124.51,0.05888592]
[1766919323330,1.71988868,124.55,124.51,0.05888592]
[1766919332327,1.71988868,124.55,124.48,3.25]
[1766919332328,1.6,124.54,124.48,3.25]
[1766919333443,0.05981124,124.52,124.5,0.05275842]
[1766919334146,0.05981124,124.52,124.48,3.25]
[1766919334443,1.65981124,124.52,124.48,3.25]
[1766919335139,1.65981124,124.52,124.49,0.05800507]
[1766919357866,0.05981124,124.52,124.49,0.05800507]
[1766919423129,0.05981124,124.52,124.49,3.27800507]
[1766919435136,0.05981124,124.52,124.49,0.05800507]
[1766919438845,1.65981124,124.52,124.49,0.05800507]
[1766919449648,3.00570485,124.56,124.5,3.19]
[1766919449841,1.66,124.55,124.5,3.19]
[1766919450651,7.2862316,124.54,124.51,0.06065593]
[1766919453751,8.9462316,124.54,124.51,0.06065593]
[1766919470559,8.9462316,124.54,124.48,3.19]
[1766919471660,8.9462316,124.54,124.5,0.05398057]
[1766919478362,7.2862316,124.54,124.5,0.05398057]
[1766919478663,1.66,124.53,124.5,0.05398057]
[1766919526715,8.8929,124.53,124.5,0.05398057]
[1766919527821,1.67,124.52,124.5,0.00398057]
[1766919602783,0.0539316,124.54,124.5,0.00398057]
[1766919602784,1.6739316,124.54,124.5,0.00398057]
[1766919604680,7.2311,124.57,124.5,7.23848057]
[1766919605280,7.2311,124.57,124.51,7.234]
[1766919605683,0.06183767,124.55,124.51,7.234]
[1766919606685,0.06183767,124.55,124.52,0.05748917]
[1766919609088,7.2297,124.59,124.52,0.05748917]
[1766919609289,7.2297,124.59,124.51,10.444]
[1766919610191,0.0527742,124.56,124.54,0.06140817]
[1766919610890,7.2297,124.59,124.54,0.06140817]
[1766919611893,0.05967522,124.58,124.54,0.06140817]
[1766919615699,7.2288,124.61,124.54,3.43140817]
[1766919616496,112.4341,124.62,124.54,0.06140817]
[1766919616697,112.4341,124.62,124.53,3.37]
[1766919616698,0.06151857,124.59,124.53,3.37]
[1766919617697,7.29091857,124.59,124.55,0.05779331]
[1766919620795,7.2301,124.58,124.55,0.05779331]
[1766919629807,0.06151857,124.59,124.55,0.05779331]
[1766919630807,7.29101857,124.59,124.55,0.05779331]
[1766919660444,0.06151857,124.59,124.55,0.05779331]
[1766919660644,7.2288,124.61,124.55,0.05779331]
[1766919661041,7.2288,124.61,124.55,3.51779331]
[1766919661645,0.05820561,124.59,124.55,3.51779331]
[1766919661848,7.2288,124.61,124.55,3.51779331]
[1766919662942,0.05598069,124.59,124.55,3.51779331]
[1766919663149,7.2276,124.63,124.55,10.74949331]
[1766919663341,7.2276,124.63,124.56,3.46]
[1766919663847,7.2277,124.62,124.56,3.46]
[1766919664049,0.05418608,124.6,124.58,0.05172115]
[1766919671057,0.05418608,124.6,124.53,17.24535969]
[1766919671251,0.05418608,124.6,124.52,3.46]
[1766919671252,0.05418608,124.6,124.52,108.33295969]
[1766919671452,112.4339,124.62,124.52,108.33295969]
[1766919672057,0.05613801,124.58,124.52,108.33295969]
[1766919672561,0.05613801,124.58,124.52,115.56645969]
[1766919673059,0.05613801,124.58,124.54,0.05439448]
[1766919674460,0.05613801,124.58,124.54,0.00439448]
[1766919687767,97.5983264,124.64,124.54,0.00439448]
[1766919687961,97.5983264,124.64,124.53,3.43]
[1766919688670,0.05682001,124.6,124.57,0.0512588]
[1766919693678,0.05682001,124.6,124.57,0.0012588]
[1766919697883,2.6983264,124.64,124.57,3.4312588]
[1766919698091,1.30115687,124.64,124.57,3.4312588]
[1766919698983,0.05121523,124.62,124.57,3.4312588]
[1766919713495,3.344715,124.7,124.57,3.4312588]
[1766919713698,3.344715,124.7,124.59,3.43]
[1766919714391,0.05627251,124.66,124.59,3.43]
[1766919715593,0.05627251,124.66,124.61,3.4811525]
[1766919715792,0.06068049,124.65,124.61,3.4811525]
[1766919715989,0.06068049,124.65,124.62,0.05824928]